fUST/lending_fUST_20250818
["ID","MTS","AMOUNT","RATE_DAILY","PERIOD"]
[380068129,1755528455489,-480.0,0.00019178,2]
[380068130,1755528455511,-480.0,0.00019178,2]
[380068131,1755528455533,-480.0,0.00019178,2]
[380068132,1755528455555,-188.44,0.00019178,2]
[380068133,1755528455577,-480.0,0.00019178,2]
[380068134,1755528455599,-480.0,0.00019178,2]
[380068135,1755528455640,-480.0,0.00019178,2]
[380068136,1755528455664,-480.0,0.00019178,2]
[380068137,1755528455685,-485.90039312,0.00019178,2]
[380068138,1755528455708,-3915.63,0.00019178,2]
[380068139,1755528455730,-480.0,0.00019178,2]
[380068140,1755528455752,-352.22,0.00019178,2]
[380068141,1755528455773,-480.0,0.00019178,2]
[380068142,1755528455795,-480.0,0.00019178,2]
[380068143,1755528455816,-506.58,0.00019178,2]
[380068144,1755528455837,-884.53,0.00019178,2]
[380068145,1755528455862,-480.0,0.00019178,2]
[380068146,1755528455884,-480.0,0.00019178,2]
[380068147,1755528455904,-480.0,0.00019178,2]
[380068148,1755528455924,-403.48286045,0.00019178,2]
[380068149,1755528455946,-480.0,0.00019178,2]
[380068150,1755528455968,-480.0,0.00019178,2]
[380068151,1755528455989,-614.78,0.00019178,2]
[380068152,1755528456009,-480.0,0.00019178,2]
[380068153,1755528456031,-480.0,0.00019178,2]
[380068154,1755528456052,-1631.29,0.00019178,2]
[380068155,1755528456073,-557.15028992,0.00019178,2]
[380068156,1755528456094,-480.0,0.00019178,2]
[380068157,1755528456118,-480.0,0.00019178,2]
[380068158,1755528456139,-293.6456949,0.00019178,2]
[380068159,1755528456162,-549.65,0.00019178,2]
[380068160,1755528456183,-484.7084002,0.00019178,2]
[380068161,1755528456203,-405.07787876,0.00019178,2]
[380068162,1755528456228,-500.95,0.00019178,2]
[380068163,1755528456248,-443.19057629,0.00019178,2]
[380068164,1755528456270,-484.3927932,0.00019178,2]
[380068165,1755528456293,-480.0,0.00019178,2]
[380068166,1755528456316,-491.5788632,0.00019178,2]
[380068167,1755528456339,-584.13,0.00019178,2]
[380068168,1755528456364,-480.0,0.00019178,2]
[380068169,1755528456390,-486.64395171,0.00019178,2]
[380068170,1755528456410,-480.0,0.00019178,2]
[380068171,1755528456433,-480.0,0.00019178,2]
[380068172,1755528456456,-486.84078953,0.00019178,2]
[380068173,1755528456477,-480.0,0.00019178,2]
[380068174,1755528456500,-480.0,0.00019178,2]
[380068175,1755528456522,-480.0,0.00019178,2]
[380068176,1755528456544,-975.69,0.00019178,2]
[380068177,1755528456565,-483.99449713,0.00019178,2]
[380068178,1755528456587,-480.0,0.00019178,2]
[380068179,1755528456611,-573.24,0.00019178,2]
[380068180,1755528456632,-480.0,0.00019178,2]
[380068181,1755528456653,-480.0,0.00019178,2]
[380068182,1755528456676,-480.0,0.00019178,2]
[380068183,1755528456699,-782.91,0.00019178,2]
[380068184,1755528456721,-480.0,0.00019178,2]
[380068185,1755528456742,-586.32619884,0.00019178,2]
[380068186,1755528456765,-480.0,0.00019178,2]
[380068187,1755528456786,-304.17057823,0.00019178,2]
[380068188,1755528456808,-592.78,0.00019178,2]
[380068189,1755528456830,-292.97854425,0.00019178,2]
[380068190,1755528456852,-480.0,0.00019178,2]
[380068191,1755528456874,-500.0,0.00019178,2]
[380068192,1755528456895,-500.0,0.00019178,2]
[380068193,1755528456917,-330.16,0.00019178,2]
[380068194,1755528456938,-480.0,0.00019178,2]
[380068195,1755528457055,-480.0,0.00019178,2]
[380068196,1755528457077,-270.52258057,0.00019178,2]
[380068197,1755528457098,-480.0,0.00019178,2]
[380068198,1755528457124,-2237.86,0.00019178,2]
[380068199,1755528457145,-480.0,0.00019178,2]
[380068200,1755528457166,-480.0,0.00019178,2]
[380068201,1755528457188,-518.92380147,0.00019178,2]
[380068202,1755528457210,-1024.53,0.00019178,2]
[380068203,1755528457231,-313.40841366,0.00019178,2]
[380068204,1755528457254,-480.0,0.00019178,2]
[380068205,1755528457275,-480.0,0.00019178,2]
[380068206,1755528457298,-480.0,0.00019178,2]
[380068207,1755528457320,-480.0,0.00019178,2]
[380068208,1755528457340,-480.0,0.00019178,2]
[380068209,1755528457363,-480.0,0.00019178,2]
[380068210,1755528457390,-487.43269474,0.00019178,2]
[380068211,1755528457412,-480.0,0.00019178,2]
[380068212,1755528457435,-480.0,0.00019178,2]
[380068213,1755528457457,-480.0,0.00019178,2]
[380068214,1755528457479,-480.0,0.00019178,2]
[380068215,1755528457500,-1399.8,0.00019178,2]
[380068216,1755528457521,-431.76168523,0.00019178,2]
[380068217,1755528457546,-543.27,0.00019178,2]
[380068218,1755528457568,-306.97,0.00019178,2]
[380068219,1755528457592,-480.0,0.00019178,2]
[380068220,1755528457615,-480.0,0.00019178,2]
[380068221,1755528457638,-1085.81,0.00019178,2]
[380068222,1755528457660,-2840.04,0.00019178,2]
[380068223,1755528457681,-441.03837399,0.00019178,2]
[380068224,1755528457702,-521.89,0.00019178,2]
[380068225,1755528457723,-480.0,0.00019178,2]
[380068226,1755528457744,-480.0,0.00019178,2]
[380068227,1755528457765,-613.65,0.00019178,2]
[380068228,1755528457789,-1824.89,0.00019178,2]
[380068229,1755528457810,-3000.0,0.000192,2]
[380068230,1755528457831,-500.0,0.00019318,2]
[380068231,1755528457852,-500.0,0.00019318,2]
[380068232,1755528457876,-500.0,0.00019318,2]
[380068233,1755528457897,-633.6111822,0.00019318,2]
[380068234,1755528457919,-291.70077764,0.00019318,2]
[380068235,1755528457940,-168.08203113,0.00019326,2]
[380068236,1755528457961,-151.0,0.00019329,2]
[380068237,1755528457982,-151.0,0.00019329,2]
[380068238,1755528458004,-223.260542,0.00019329,2]
[380068239,1755528458033,-151.0,0.00019329,2]
[380068240,1755528458064,-151.0,0.00019329,2]
[380068241,1755528458092,-151.817891,0.00019329,2]
[380068242,1755528458125,-224.3999164,0.00019346,2]
[380068243,1755528458157,-9137.71242269,0.00019352,2]
[380068244,1755528458186,-500.0,0.00019373,2]
[380068245,1755528458214,-500.0,0.00019373,2]
[380068246,1755528458244,-480.0,0.00019452,2]
[380068247,1755528458270,-480.0,0.00019452,2]
[380068248,1755528458299,-480.0,0.00019452,2]
[380068249,1755528458329,-480.0,0.00019452,2]
[380068250,1755528458363,-480.0,0.00019452,2]
[380068251,1755528458404,-480.0,0.00019452,2]
[380068252,1755528458432,-480.0,0.00019452,2]
[380068253,1755528458463,-480.0,0.00019452,2]
[380068254,1755528458491,-480.0,0.00019452,2]
[380068255,1755528458518,-480.0,0.00019452,2]
[380068256,1755528458544,-492.07824402,0.00019452,2]
[380068257,1755528458571,-480.0,0.00019452,2]
[380068258,1755528458617,-480.0,0.00019452,2]
[380068259,1755528458645,-480.0,0.00019452,2]
[380068260,1755528458675,-480.0,0.00019452,2]
[380068261,1755528458705,-845.84,0.00019452,2]
[380068262,1755528458732,-526.95,0.00019452,2]
[380068263,1755528458761,-878.32,0.00019452,2]
[380068264,1755528458789,-480.0,0.00019452,2]
[380068265,1755528458816,-480.0,0.00019452,2]
[380068266,1755528458843,-834.8,0.00019452,2]
[380068267,1755528458871,-480.0,0.00019452,2]
[380068268,1755528458898,-480.0,0.00019452,2]
[380068269,1755528458925,-569.41,0.00019452,2]
[380068270,1755528458951,-480.0,0.00019452,2]
[380068271,1755528458978,-480.0,0.00019452,2]
[380068272,1755528459004,-512.84,0.00019452,2]
[380068273,1755528459031,-480.0,0.00019452,2]
[380068274,1755528459057,-480.0,0.00019452,2]
[380068275,1755528459083,-480.0,0.00019452,2]
[380068276,1755528459110,-480.0,0.00019452,2]
[380068277,1755528459138,-480.0,0.00019452,2]
[380068278,1755528459166,-3915.63,0.00019452,2]
[380068279,1755528459192,-480.0,0.00019452,2]
[380068280,1755528459221,-480.0,0.00019452,2]
[380068281,1755528459242,-480.0,0.00019452,2]
[380068282,1755528459265,-506.58,0.00019452,2]
[380068283,1755528459460,-884.53,0.00019452,2]
[380068284,1755528459493,-480.0,0.00019452,2]
[380068285,1755528459516,-480.0,0.00019452,2]
[380068286,1755528459538,-480.0,0.00019452,2]
[380068287,1755528459562,-480.0,0.00019452,2]
[380068288,1755528459585,-614.78,0.00019452,2]
[380068289,1755528459606,-201.74833023,0.00019452,2]
[380068290,1755528459632,-480.0,0.00019452,2]
[380068291,1755528459653,-1631.29,0.00019452,2]
[380068292,1755528459675,-480.0,0.00019452,2]
[380068293,1755528459697,-480.0,0.00019452,2]
[380068294,1755528459719,-151.0,0.00019452,2]
[380068295,1755528459744,-549.65,0.00019452,2]
[380068296,1755528459767,-151.0,0.00019452,2]
[380068297,1755528459790,-152.080669,0.00019452,2]
[380068298,1755528459811,-152.080669,0.00019452,2]
[380068299,1755528459835,-500.95,0.00019452,2]
[380068300,1755528459858,-480.0,0.00019452,2]
[380068301,1755528459882,-584.13,0.00019452,2]
[380068302,1755528459905,-480.0,0.00019452,2]
[380068303,1755528459927,-480.0,0.00019452,2]
[380068304,1755528459951,-480.0,0.00019452,2]
[380068305,1755528459972,-480.0,0.00019452,2]
[380068306,1755528459995,-480.0,0.00019452,2]
[380068307,1755528460017,-151.0,0.00019452,2]
[380068308,1755528460039,-480.0,0.00019452,2]
[380068309,1755528460061,-151.0,0.00019452,2]
[380068310,1755528460083,-151.770029,0.00019452,2]
[380068311,1755528460106,-975.69,0.00019452,2]
[380068312,1755528460129,-480.0,0.00019452,2]
[380068313,1755528460152,-200.169607,0.00019452,2]
[380068314,1755528460174,-573.24,0.00019452,2]
[380068315,1755528460195,-480.0,0.00019452,2]
[380068316,1755528460217,-200.169607,0.00019452,2]
[380068317,1755528460238,-151.0,0.00019452,2]
[380068318,1755528460261,-480.0,0.00019452,2]
[380068319,1755528460284,-480.0,0.00019452,2]
[380068320,1755528460307,-782.91,0.00019452,2]
[380068321,1755528460330,-264.919544,0.00019452,2]
[380068322,1755528460354,-480.0,0.00019452,2]
[380068323,1755528460386,-480.0,0.00019452,2]
[380068324,1755528460408,-592.78,0.00019452,2]
[380068325,1755528460431,-456.4276027,0.00019452,2]
[380068326,1755528460452,-151.0,0.00019452,2]
[380068327,1755528460474,-480.0,0.00019452,2]
[380068328,1755528460495,-480.0,0.00019452,2]
[380068329,1755528460516,-480.0,0.00019452,2]
[380068330,1755528460539,-2237.86,0.00019452,2]
[380068331,1755528460560,-480.0,0.00019452,2]
[380068332,1755528460582,-486.00121376,0.00019452,2]
[380068333,1755528460604,-1024.53,0.00019452,2]
[380068334,1755528460626,-496.71873082,0.00019452,2]
[380068335,1755528460648,-480.0,0.00019452,2]
[380068336,1755528460671,-480.0,0.00019452,2]
[380068337,1755528460692,-151.857966,0.00019452,2]
[380068338,1755528460715,-151.0,0.00019452,2]
[380068339,1755528460737,-244.77,0.00019452,2]
[380068340,1755528460760,-480.0,0.00019452,2]
[380068341,1755528460782,-613.42828017,0.00019452,2]
[380068342,1755528460803,-480.0,0.00019452,2]
[380068343,1755528460826,-480.0,0.00019452,2]
[380068344,1755528460848,-436.86232347,0.00019452,2]
[380068394,1755528632579,-150.0,0.000189,2]
[380068396,1755528632589,-1993.3186791,0.00019078,2]
[380068398,1755528632600,-166.83285044,0.00019172,2]
[380068400,1755528632609,-500.0,0.00019173,2]
[380068402,1755528632619,-300.0,0.00019177,2]
[380068404,1755528632628,-1200.0,0.00019177,2]
[380068406,1755528632638,-649.96,0.00019178,2]
[380068408,1755528632650,-274.66009415,0.00019178,2]
[380068410,1755528632662,-958.27990585,0.00019178,2]
[380068412,1755528632672,-480.0,0.00019178,2]
[380068415,1755528632682,-480.0,0.00019178,2]
[380068417,1755528632691,-480.0,0.00019178,2]
[380068419,1755528632701,-480.0,0.00019178,2]
[380068421,1755528632710,-480.0,0.00019178,2]
[380068423,1755528632720,-480.0,0.00019178,2]
[380068425,1755528632730,-480.0,0.00019178,2]
[380068427,1755528632744,-480.0,0.00019178,2]
[380068429,1755528632763,-480.0,0.00019178,2]
[380068431,1755528632783,-480.0,0.00019178,2]
[380068433,1755528632803,-3631.01,0.00019178,2]
[380068435,1755528632825,-238.2505843,0.00019178,2]
[380068437,1755528632843,-463.95427687,0.00019178,2]
[380068439,1755528632853,-524.23,0.00019178,2]
[380068441,1755528632862,-480.0,0.00019178,2]
[380068443,1755528632871,-1000.0,0.00019178,2]
[380068445,1755528632880,-480.0,0.00019178,2]
[380068447,1755528632889,-1058.65,0.00019178,2]
[380068449,1755528632898,-480.0,0.00019178,2]
[380068451,1755528632907,-578.26,0.00019178,2]
[380068453,1755528632916,-480.0,0.00019178,2]
[380068455,1755528632925,-480.0,0.00019178,2]
[380068457,1755528632935,-480.0,0.00019178,2]
[380068459,1755528632943,-480.0,0.00019178,2]
[380068461,1755528632952,-480.0,0.00019178,2]
[380068462,1755528632961,-480.0,0.00019178,2]
[380068464,1755528632971,-262.24469329,0.00019178,2]
[380068466,1755528632980,-204.27633251,0.00019178,2]
[380068468,1755528632989,-480.0,0.00019178,2]
[380068470,1755528632998,-480.0,0.00019178,2]
[380068472,1755528633007,-552.82,0.00019178,2]
[380068474,1755528633017,-480.0,0.00019178,2]
[380068476,1755528633027,-480.0,0.00019178,2]
[380068478,1755528633037,-1495.35,0.00019178,2]
[380068480,1755528633046,-480.0,0.00019178,2]
[380068482,1755528633056,-480.0,0.00019178,2]
[380068484,1755528633065,-480.0,0.00019178,2]
[380068486,1755528633081,-480.0,0.00019178,2]
[380068489,1755528633106,-480.0,0.00019178,2]
[380068491,1755528633117,-480.0,0.00019178,2]
[380068493,1755528633127,-480.0,0.00019178,2]
[380068495,1755528633137,-480.0,0.00019178,2]
[380068496,1755528633147,-500.0,0.00019178,2]
[380068498,1755528633156,-500.0,0.00019178,2]
[380068500,1755528633166,-500.0,0.00019178,2]
[380068502,1755528633175,-500.0,0.00019178,2]
[380068503,1755528633184,-500.0,0.00019178,2]
[380068504,1755528633194,-555.45,0.00019178,2]
[380068505,1755528633204,-480.0,0.00019178,2]
[380068506,1755528633214,-480.0,0.00019178,2]
[380068507,1755528633224,-448.60680924,0.00019178,2]
[380068508,1755528633233,-316.96006992,0.00019178,2]
[380068509,1755528633242,-480.0,0.00019178,2]
[380068510,1755528633252,-480.0,0.00019178,2]
[380068511,1755528633263,-480.0,0.00019178,2]
[380068512,1755528633274,-480.0,0.00019178,2]
[380068513,1755528633285,-480.0,0.00019178,2]
[380068514,1755528633297,-480.0,0.00019178,2]
[380068515,1755528633308,-487.1791295,0.00019178,2]
[380068517,1755528633318,-480.0,0.00019178,2]
[380068519,1755528633328,-775.36,0.00019178,2]
[380068521,1755528633340,-480.0,0.00019178,2]
[380068523,1755528633350,-480.0,0.00019178,2]
[380068525,1755528633362,-480.0,0.00019178,2]
[380068527,1755528633372,-257.59135799,0.00019178,2]
[380068529,1755528633382,-480.0,0.00019178,2]
[380068531,1755528633392,-480.0,0.00019178,2]
[380068533,1755528633401,-483.04,0.00019178,2]
[380068535,1755528633410,-480.0,0.00019178,2]
[380068537,1755528633424,-480.0,0.00019178,2]
[380068539,1755528633439,-480.0,0.00019178,2]
[380068541,1755528633448,-480.0,0.00019178,2]
[380068543,1755528633458,-480.0,0.00019178,2]
[380068545,1755528633468,-480.0,0.00019178,2]
[380068547,1755528633479,-480.0,0.00019178,2]
[380068549,1755528633490,-154.22,0.00019178,2]
[380068551,1755528633500,-480.0,0.00019178,2]
[380068553,1755528633510,-583.56030801,0.00019178,2]
[380068555,1755528633522,-583.38,0.00019178,2]
[380068556,1755528633533,-442.56547081,0.00019178,2]
[380068557,1755528633542,-869.04,0.00019178,2]
[380068558,1755528633553,-480.0,0.00019178,2]
[380068559,1755528633563,-525.95376,0.00019329,2]
[380068560,1755528633574,-525.95376,0.00019329,2]
[380068561,1755528633584,-151.0,0.00019329,2]
[380068562,1755528633593,-151.0,0.00019329,2]
[380068573,1755528633707,-151.0,0.00019329,2]
[380068575,1755528633717,-480.0,0.0001945,2]
[380068577,1755528633728,-500.0,0.00019451,2]
[380068579,1755528633740,-471.8097118,0.00019451,2]
[380068581,1755528633751,-500.0,0.00019451,2]
[380068583,1755528633763,-500.0,0.00019451,2]
[380068585,1755528633775,-181.33769704,0.00019451,2]
[380068587,1755528633786,-962.93767653,0.00019452,2]
[380068589,1755528633798,-543.27,0.00019452,2]
[380068591,1755528633810,-151.0,0.00019452,2]
[380068592,1755528633823,-480.0,0.00019452,2]
[380068593,1755528633835,-152.62283,0.00019452,2]
[380068594,1755528633846,-480.0,0.00019452,2]
[380068595,1755528633855,-1085.81,0.00019452,2]
[380068596,1755528633866,-521.89,0.00019452,2]
[380068597,1755528633877,-1000.0,0.00019452,2]
[380068598,1755528633886,-480.0,0.00019452,2]
[380068599,1755528633896,-1000.0,0.00019452,2]
[380068600,1755528633906,-1000.0,0.00019452,2]
[380068601,1755528633916,-1000.0,0.00019452,2]
[380068602,1755528633925,-1000.0,0.00019452,2]
[380068603,1755528633935,-1000.0,0.00019452,2]
[380068604,1755528633945,-482.51203858,0.00019452,2]
[380068605,1755528633955,-1000.0,0.00019452,2]
[380068606,1755528633964,-613.65,0.00019452,2]
[380068607,1755528633974,-2840.04,0.00019452,2]
[380068608,1755528633984,-1824.89,0.00019452,2]
[380068609,1755528633993,-649.96,0.00019452,2]
[380068610,1755528634003,-1000.0,0.00019452,2]
[380068611,1755528634013,-1000.0,0.00019452,2]
[380068612,1755528634022,-1000.0,0.00019452,2]
[380068613,1755528634032,-1000.0,0.00019452,2]
[380068614,1755528634041,-1000.0,0.00019452,2]
[380068615,1755528634051,-1000.0,0.00019452,2]
[380068616,1755528634061,-1000.0,0.00019452,2]
[380068617,1755528634070,-1000.0,0.00019452,2]
[380068618,1755528634080,-1000.0,0.00019452,2]
[380068619,1755528634090,-525.95376,0.00019452,2]
[380068620,1755528634100,-1000.0,0.00019452,2]
[380068621,1755528634110,-904.945368,0.00019452,2]
[380068622,1755528634119,-525.95376,0.00019452,2]
[380068623,1755528634129,-151.0,0.00019452,2]
[380068624,1755528634139,-192.3318,0.00019452,2]
[380068625,1755528634149,-1232.94,0.00019452,2]
[380068626,1755528634158,-480.0,0.00019452,2]
[380068627,1755528634168,-480.0,0.00019452,2]
[380068628,1755528634177,-480.0,0.00019452,2]
[380068629,1755528634188,-151.0,0.00019452,2]
[380068630,1755528634197,-480.0,0.00019452,2]
[380068631,1755528634211,-480.0,0.00019452,2]
[380068632,1755528634220,-517.36194463,0.00019452,2]
[380068633,1755528634230,-480.0,0.00019452,2]
[380068634,1755528634241,-480.0,0.00019452,2]
[380068635,1755528634251,-480.0,0.00019452,2]
[380068636,1755528634261,-3631.01,0.00019452,2]
[380068637,1755528634271,-151.0,0.00019452,2]
[380068638,1755528634280,-524.23,0.00019452,2]
[380068639,1755528634290,-151.0,0.00019452,2]
[380068640,1755528634300,-210.17143817,0.00019452,2]
[380068641,1755528634309,-390.19832225,0.00019452,2]
[380068642,1755528634319,-151.0,0.00019452,2]
[380068643,1755528634328,-151.0,0.00019452,2]
[380068644,1755528634337,-1058.65,0.00019452,2]
[380068645,1755528634347,-151.0,0.00019452,2]
[380068646,1755528634356,-578.26,0.00019452,2]
[380068647,1755528634365,-480.0,0.00019452,2]
[380068648,1755528634375,-480.0,0.00019452,2]
[380068649,1755528634384,-480.0,0.00019452,2]
[380068650,1755528634393,-480.0,0.00019452,2]
[380068651,1755528634403,-480.0,0.00019452,2]
[380068652,1755528634412,-480.0,0.00019452,2]
[380068653,1755528634427,-480.0,0.00019452,2]
[380068654,1755528634436,-552.82,0.00019452,2]
[380068655,1755528634445,-480.0,0.00019452,2]
[380068656,1755528634459,-480.0,0.00019452,2]
[380068657,1755528634473,-1495.35,0.00019452,2]
[380068658,1755528634482,-480.0,0.00019452,2]
[380068659,1755528634493,-480.0,0.00019452,2]
[380068660,1755528634503,-480.0,0.00019452,2]
[380068661,1755528634512,-480.0,0.00019452,2]
[380068662,1755528634522,-480.0,0.00019452,2]
[380068663,1755528634532,-480.0,0.00019452,2]
[380068664,1755528634541,-555.45,0.00019452,2]
[380068665,1755528634550,-1013.23298153,0.00019452,2]
[380068666,1755528634560,-480.0,0.00019452,2]
[380068667,1755528634570,-480.0,0.00019452,2]
[380068668,1755528634579,-480.0,0.00019452,2]
[380068669,1755528634588,-572.91341834,0.00019452,2]
[380068670,1755528634597,-480.0,0.00019452,2]
[380068671,1755528634607,-775.36,0.00019452,2]
[380068672,1755528634616,-480.0,0.00019452,2]
[380068673,1755528634625,-480.0,0.00019452,2]
[380068674,1755528634635,-483.04,0.00019452,2]
[380068675,1755528634644,-480.0,0.00019452,2]
[380068676,1755528634653,-480.0,0.00019452,2]
[380068677,1755528634663,-480.0,0.00019452,2]
[380068678,1755528634672,-480.0,0.00019452,2]
[380068679,1755528634682,-480.0,0.00019452,2]
[380068680,1755528634691,-480.0,0.00019452,2]
[380068681,1755528634701,-583.38,0.00019452,2]
[380068682,1755528634710,-869.04,0.00019452,2]
[380068683,1755528634719,-1475.26843289,0.0001954,2]
[380068684,1755528634728,-153.0,0.00019644,2]
[380068685,1755528634738,-153.0,0.000197,2]
[380068686,1755528634747,-642.83,0.00019716,3]
[380068687,1755528634756,-321.41,0.00019716,3]
[380068688,1755528634766,-160.71,0.00019716,3]
[380068689,1755528634775,-482.15,0.00019716,3]
[380068690,1755528634785,-214.23797219,0.00019721,2]
[380068691,1755528634794,-500.0,0.00019721,2]
[380068692,1755528634804,-500.0,0.00019721,2]
[380068693,1755528634813,-1000.0,0.00019721,2]
[380068694,1755528634822,-151.0,0.00019721,2]
[380068695,1755528634831,-151.0,0.00019721,2]
[380068696,1755528634840,-151.0,0.00019721,2]
[380068697,1755528634850,-184.405295,0.00019721,2]
[380068698,1755528634859,-184.405295,0.00019721,2]
[380068699,1755528634869,-204.62766742,0.00019725,2]
[380068700,1755528634879,-480.0,0.00019726,2]
[380068701,1755528634888,-480.0,0.00019726,2]
[380068702,1755528634897,-878.32,0.00019726,2]
[380068703,1755528634907,-480.0,0.00019726,2]
[380068704,1755528634916,-480.0,0.00019726,2]
[380068705,1755528634925,-834.8,0.00019726,2]
[380068706,1755528634935,-319.22649246,0.00019726,2]
[380068707,1755528634945,-480.0,0.00019726,2]
[380068708,1755528634955,-151.0,0.00019726,2]
[380068709,1755528634965,-569.41,0.00019726,2]
[380068710,1755528634975,-480.0,0.00019726,2]
[380068711,1755528634986,-480.0,0.00019726,2]
[380068712,1755528634997,-512.84,0.00019726,2]
[380068713,1755528635008,-480.0,0.00019726,2]
[380068714,1755528635020,-151.0,0.00019726,2]
[380068715,1755528635037,-214.171834,0.00019726,2]
[380068716,1755528635048,-216.5298047,0.00019726,2]
[380068717,1755528635059,-151.0,0.00019726,2]
[380068718,1755528635070,-184.620624,0.00019726,2]
[380068719,1755528635080,-151.0,0.00019726,2]
[380068720,1755528635091,-184.340972,0.00019726,2]
[380068721,1755528635101,-184.340972,0.00019726,2]
[380068722,1755528635111,-151.0,0.00019726,2]
[380068723,1755528635121,-151.0,0.00019726,2]
[380068724,1755528635137,-480.0,0.00019726,2]
[380068725,1755528635146,-480.0,0.00019726,2]
[380068726,1755528635156,-349.1452113,0.00019726,2]
[380068727,1755528635165,-480.0,0.00019726,2]
[380068728,1755528635175,-152.080669,0.00019726,2]
[380068729,1755528635191,-152.080669,0.00019726,2]
[380068730,1755528635201,-480.0,0.00019726,2]
[380068731,1755528635211,-480.0,0.00019726,2]
[380068732,1755528635221,-480.0,0.00019726,2]
[380068733,1755528635231,-151.0,0.00019726,2]
[380068734,1755528635243,-975.69,0.00019726,2]
[380068735,1755528635253,-203.09447796,0.00019726,2]
[380068736,1755528635263,-200.169607,0.00019726,2]
[380068737,1755528635277,-573.24,0.00019726,2]
[380068738,1755528635291,-480.0,0.00019726,2]
[380068739,1755528635301,-200.169607,0.00019726,2]
[380068740,1755528635313,-151.0,0.00019726,2]
[380068741,1755528635323,-782.91,0.00019726,2]
[380068742,1755528635334,-304.60624702,0.00019726,2]
[380068743,1755528635344,-424.47819233,0.00019726,2]
[380068744,1755528635360,-55.52180767,0.00019726,2]
[380068745,1755528635369,-2237.86,0.00019726,2]
[380068746,1755528635379,-480.0,0.00019726,2]
[380068747,1755528635388,-1024.53,0.00019726,2]
[380068748,1755528635398,-480.0,0.00019726,2]
[380068749,1755528635407,-480.0,0.00019726,2]
[380068750,1755528635419,-480.0,0.00019726,2]
[380068751,1755528635431,-151.0,0.00019726,2]
[380068752,1755528635441,-237.99321451,0.00019726,2]
[380068753,1755528635450,-1399.8,0.00019726,2]
[380068754,1755528635461,-543.27,0.00019726,2]
[380068755,1755528635471,-151.0,0.00019726,2]
[380068756,1755528635480,-480.0,0.00019726,2]
[380068757,1755528635490,-480.0,0.00019726,2]
[380068758,1755528635501,-1085.81,0.00019726,2]
[380068759,1755528635511,-521.89,0.00019726,2]
[380068760,1755528635523,-480.0,0.00019726,2]
[380068761,1755528635535,-1824.89,0.00019726,2]
[380068762,1755528635544,-2840.04,0.00019726,2]
[380068763,1755528635554,-613.65,0.00019726,2]
[380068764,1755528635563,-649.96,0.00019726,2]
[380068765,1755528635573,-525.95376,0.00019726,2]
[380068766,1755528635583,-525.95376,0.00019726,2]
[380068767,1755528635594,-1232.94,0.00019726,2]
[380068768,1755528635603,-480.0,0.00019726,2]
[380068769,1755528635613,-480.0,0.00019726,2]
[380068770,1755528635623,-151.0,0.00019726,2]